Cogmind - Beta 13 @@@ ROGUE MODE // 2024.04.25 @ 16:49:46 Player: Barbarossa Result: Destroyed by G-47 Trooper with Particle Gun Performance ------------- Evolutions (1) 500 Regions Visited (2) 400 Robots Destroyed (31) 155 Value Destroyed (632) 632 Prototype IDs (0) 0 Alien Tech Used (0) 0 Bonus (0) 0 TOTAL SCORE: 1687 Bonus ------- None Cogmind --------- Core Integrity 0/400 Matter 236/300 Energy 100/100 System Corruption 0% Temperature Cool (18) Movement Rolling (100) Location -9/Materials Parts ------- > --- POWER (1) -------- (None) > --- PROPULSION (4) --- Light Treads Compact Wheel Compact Wheel > --- UTILITY (2) ------ Large Storage Unit > --- WEAPON (2) ------- Light Assault Rifle > --- INVENTORY (15) --- Improved Ion Engine Light Treads Compact Wheel Heat Sink Disposable Heat Sink Disposable Heat Sink Huge Storage Unit Signal Interpreter Light Assault Rifle Peak State ------------ > --- POWER ------------ Ion Engine > --- PROPULSION ------- Hover Unit Hover Unit Hover Unit Hover Unit > --- UTILITY ---------- Large Storage Unit > --- WEAPON ----------- Beam Rifle Particle Gun > --- INVENTORY -------- Improved Ion Engine Light Treads Light Treads Light Treads Compact Wheel Compact Wheel Compact Wheel Hover Unit Hover Unit Disposable Heat Sink Disposable Heat Sink Huge Storage Unit Signal Interpreter Light Armor Plating Autogun [Rating: 11] Favorites ----------- Power Ion Engine Engine Ion Engine Propulsion Hover Unit Treads Light Treads Leg Aluminum Leg Wheel Compact Wheel Hover Unit Hover Unit Utility Large Storage Unit Storage Large Storage Unit Protection Light Armor Plating Weapon Light Assault Rifle Energy Gun Particle Gun Ballistic Gun Light Assault Rifle Build | -11 -10 -9 ------- Run | Yrd Mat Mat Slots Evolved 2 | . . 2 Power . | . . . Propulsion 2 | . . 2 Utility . | . . . Weapon . | . . . Parts Attached 35 | . 3 32 Power 4 | . . 4 Engine 4 | . . 4 Core . | . . . Reactor . | . . . Propulsion 21 | . 2 19 Treads 2 | . . 2 Leg . | . . . Wheel 6 | . 2 4 Hover 13 | . . 13 Flight . | . . . Utility 3 | . 1 2 Device . | . . . Storage 2 | . 1 1 Processor . | . . . Hackware . | . . . Protection 1 | . . 1 Artifact . | . . . Weapon 7 | . . 7 Energy Gun 3 | . . 3 Energy Cannon . | . . . Ballistic Gun 4 | . . 4 Ballistic Cannon . | . . . Launcher . | . . . Special Weapon . | . . . Impact Weapon . | . . . Slashing Weapon . | . . . Piercing Weapon . | . . . Special Melee Weapon . | . . . Unidentified Prototypes . | . . . Parts Lost 20 | . . 20 Power 3 | . . 3 Propulsion 10 | . . 10 Utility 1 | . . 1 Weapon 6 | . . 6 Highest Loss Streak 6 | . . 6 To Critical Strikes . | . . . Average Slot Usage (%) 81 | . 85 79 Engine 11 | . 14 10 Treads 2 | . . 4 Wheel 12 | . 28 3 Hover 20 | . . 32 Storage 12 | . 14 11 Energy Gun 6 | . . 10 Ballistic Gun 14 | . 28 6 Naked Turns . | . . . Heaviest Build 31 | 13 28 31 Greatest Support 32 | 20 26 32 Greatest Overweight (x) 4 | . 1 4 Average Overweight (x) . | . . 1 Largest Inventory Capacity 25 | . 15 25 Average Capacity 14 | . 14 15 Most Carried 15 | . 15 15 Average Carried 12 | . 11 13 Final Capacity 15 | 8 15 15 Final Carried 15 | 6 15 9 Class Distribution -------------------- 82% | Mutant 17% | Scavenger-Mutant Dominant Class ---------------- Mutant | -10/Materials Mutant | -9/Materials Resources | -11 -10 -9 ----------- Run | Yrd Mat Mat Matter Collected 648 | 200 146 302 Remotely . | . . . Salvage Created 1134 | . 294 840 Parts 55 | . 16 39 Haulers Intercepted 2 | . 1 1 Recyclers Shooed 2 | . . 2 Parts Field Recycled . | . . . Retrieved Matter . | . . . Parts Self-Destructed . | . . . Prevented . | . . . Kills | -11 -10 -9 ------- Run | Yrd Mat Mat Combat Hostiles Destroyed 21 | . 5 16 Guns 21 | . 5 16 Classes Destroyed 7 | . 5 2 Worker 1 | . . 1 Hauler 2 | . 1 1 Recycler 4 | . 1 3 Watcher 3 | . 1 2 Swarmer 9 | . 3 6 Grunt 8 | . 2 6 Sentry 4 | . . 4 Best Kill Streak 8 | . 5 8 Combat Bots Only 5 | . 3 5 Max Kills in Single Turn 2 | . 2 1 Gunslinging 1 | . 1 . Exploded . | . . . Melee . | . . . Uniques/NPCs Destroyed . | . . . Combat | -11 -10 -9 -------- Run | Yrd Mat Mat Hostile Shots Fired 240 | . 31 209 Missed 55 | . 6 49 Damage Taken 2110 | . 282 1828 Core 508 | . 98 410 Absorbed by Shields . | . . . Core Remaining (%) 80 | 100 60 . Volleys Fired 127 | . 32 95 Largest 2 | . 2 2 Hottest 121 | . 40 121 Shots Fired 188 | . 64 124 Gun 188 | . 64 124 Cannon . | . . . Launcher . | . . . Special . | . . . Kinetic 114 | . 64 50 Thermal 74 | . . 74 Explosive . | . . . Electromagnetic . | . . . Robot Hit Streak 14 | . 6 14 Robot Miss Streak 3 | . 3 2 Penetration Max . | . . . Secondary Targets 7 | . 3 4 Max Gunslinging Chain 1 | . 1 1 Shots Hit Robots 136 | . 44 92 Core Hits 51 | . 15 36 Critical Kills . | . . . Critical Parts Destroyed . | . . . Critical Strikes 4 | . . 4 Burn 4 | . . 4 Melee Attacks . | . . . Impact . | . . . Slashing . | . . . Piercing . | . . . Sneak Attacks . | . . . Combat Hostiles . | . . . Follow-up Attacks . | . . . Damage Inflicted 1723 | . 411 1312 Guns 1723 | . 411 1312 Cannons . | . . . Explosions . | . . . Melee . | . . . Ramming . | . . . Kinetic 809 | . 411 398 Thermal 914 | . . 914 Explosive . | . . . Electromagnetic . | . . . Impact . | . . . Slashing . | . . . Piercing . | . . . Highest Corruption . | . . . Average Corruption . | . . . Corruption Purged . | . . . Corruption Blocked . | . . . Overload Shots . | . . . Overflow Damage . | . . . Projectiles . | . . . Explosions . | . . . Melee . | . . . Knockbacks . | . . . Impact . | . . . Kinetic . | . . . Secondary . | . . . Self-Inflicted Damage . | . . . Shots . | . . . Rammed . | . . . Targets Rammed . | . . . Kicked . | . . . Crushed . | . . . Highest Temperature 401 | . 9 401 Average Temperature 114 | . 8 116 Received Heat Transfer 768 | . 48 720 Effects 2 | . . 2 Energy Bleed 1 | . . 1 Interference 1 | . . 1 Siege Activations . | . . . Robots Corrupted . | . . . Combat Hostiles . | . . . Parts Fried . | . . . Impact Corruptions . | . . . Robots Melted 1 | . . 1 Combat Hostiles . | . . . Parts Melted 3 | . . 3 Heat Transferred 2445 | . . 2445 Parts Sabotaged . | . . . Parts Stolen . | . . . Parts Stripped . | . . . Power Chain Reactions . | . . . Alert | -11 -10 -9 ------- Run | Yrd Mat Mat Peak Influence 309 | . 139 309 Initial 58 | . . 58 Average 130 | . 52 174 Maximum Alert Level 1 | . . 1 Low Security (%) 72 | . 100 56 Level 1 27 | . . 43 Level 2 . | . . . Level 3 . | . . . Level 4 . | . . . Level 5 . | . . . High Security . | . . . Max Security . | . . . Squads Dispatched 2 | . . 2 Investigation . | . . . Extermination . | . . . Reinforcement 2 | . . 2 Assault . | . . . Garrison . | . . . Intercept . | . . . Searches Triggered . | . . . Construction Impeded . | . . . Haulers Reinforced . | . . . Active Scanning Responses . | . . . Cargo Convoy Interrupts . | . . . Stealth | -11 -10 -9 --------- Run | Yrd Mat Mat Distress Signals 3 | . . 3 Communications Jammed . | . . . Distress Signals . | . . . Times Spotted 40 | . 7 33 Peak Tracking Total 5 | . 3 5 Tactical Retreats 1 | . . 1 Traps | -11 -10 -9 ------- Run | Yrd Mat Mat Traps Triggered 1 | . 1 . Indirectly . | . . . Trap Hack Attempts . | . . . Triggered . | . . . Disarmed . | . . . Reprogrammed . | . . . Reused . | . . . Traps Extracted . | . . . Installed . | . . . Triggered . | . . . Machines | -11 -10 -9 ---------- Run | Yrd Mat Mat Machines Disabled . | . . . Max in Single Turn . | . . . Machines Repaired . | . . . Machines Dismantled . | . . . Machines Sabotaged . | . . . Overloaded Fab Kills . | . . . Hacking | -11 -10 -9 --------- Run | Yrd Mat Mat Machines Accessed 1 | . 1 . Terminals 1 | . 1 . Fabricators . | . . . Repair Stations . | . . . Recycling Units . | . . . Scanalyzers . | . . . Garrison Access . | . . . Total Hacks 1 | . 1 . Successful 1 | . 1 . Failed . | . . . Catastrophic . | . . . Database Lockouts . | . . . Manual 1 | . 1 . Terminals 1 | . 1 . Fabricators . | . . . Repair Stations . | . . . Recycling Units . | . . . Scanalyzers . | . . . Garrison Access . | . . . Terminal Hacks . | . . . Fabricator Hacks . | . . . Repair Station Hacks . | . . . Recycling Unit Hacks . | . . . Scanalyzer . | . . . Garrison Access Hacks . | . . . Unauthorized Hacks 1 | . 1 . Terminals 1 | . 1 . Botnet 1 | . 1 . Fabricators . | . . . Repair Stations . | . . . Recycling Units . | . . . Scanalyzers . | . . . Garrison Access . | . . . Data Cores Recovered . | . . . Used . | . . . Hacking Detections . | . . . Full Trace Events . | . . . Feedback Events . | . . . Feedback Blocked . | . . . Robot Schematics Acquired . | . . . Robots Built . | . . . Authchips . | . . . Time . | . . . Total Robot Build Rating . | . . . Part Schematics Acquired . | . . . Parts Built . | . . . Authchips . | . . . Time . | . . . Total Part Build Rating . | . . . Parts Repaired . | . . . Time . | . . . Parts Recycled . | . . . Recycled Matter . | . . . Retrieved Matter . | . . . Retrieved Components . | . . . Parts Scanalyzed . | . . . Part Schematics Acquired . | . . . Parts Damaged . | . . . Bothacking | -11 -10 -9 ------------ Run | Yrd Mat Mat Used RIF Installer . | . . . Robots Hacked . | . . . Non-combat . | . . . Combat . | . . . Robot Hacks Applied . | . . . Relay Couplers Released . | . . . Fabnet Peak Effective % . | . . . Robots Rewired . | . . . Allies Hacked . | . . . Hacks Repelled . | . . . Allies | -11 -10 -9 -------- Run | Yrd Mat Mat Total Allies . | . . . Largest Group . | . . . Highest-Rated Group . | . . . Highest-Rated Ally . | . . . Total Orders . | . . . Ally Attacks . | . . . Total Damage . | . . . Kills . | . . . Allies Corrupted . | . . . Allies Melted . | . . . Intel | -11 -10 -9 ------- Run | Yrd Mat Mat Robot Analysis Total . | . . . Derelict Logs Recovered . | . . . Drone Launches . | . . . Drone Recoveries . | . . . Exploration | -11 -10 -9 ------------- Run | Yrd Mat Mat Turns Passed 895 | . 323 572 Spaces Moved 457 | 1 209 247 Core . | . . . Treads 23 | . . 23 Legs 1 | 1 . . Wheels 224 | . 209 15 Hover 209 | . . 209 Flight . | . . . Fastest Speed 90 | 120 90 100 Average Speed 114 | 120 103 124 Slowest Speed 300 | 120 105 300 Overloaded Moves . | . . . Propulsion Burnouts . | . . . Robots Hopped . | . . . Cave-ins Triggered . | . . . Exploration Rate (%) 26 | 2 47 30 Regions Visited 2 Branch Regions . Pre-discovered Areas . | . . . Known Exits Taken . | . . . Unknown Exits Taken 2 | 1 1 . Scrap Searched . | . . . Spaces Dug . | . . . Terrain Destroyed . | . . . Melee . | . . . Projectile . | . . . AOE . | . . . Terrain Rammed . | . . . Walls Destroyed . | . . . Machines Disabled . | . . . Actions | -11 -10 -9 --------- Run | Yrd Mat Mat Total 656 | . 258 398 Wait 2 | . . 2 Move 455 | . 208 247 Hop . | . . . Pick Up 26 | . 12 14 Fast Attach 4 | . . 4 Attach 20 | . 1 19 Detach . | . . . Swap 11 | . 2 9 Drop 11 | . 3 8 Fire 127 | . 32 95 Melee . | . . . Ram . | . . . Kick . | . . . Crush . | . . . Escape Stasis . | . . . Rewire . | . . . Trap . | . . . Miscellaneous . | . . . Route ------- -11/Scrapyard -10/Materials (discovered 3 exits: [*Mat x2] / [*Min]) -9/Materials (discovered 1 exit: [*Min]) History --------- Turn | Location | Event 1 | -11/Scrapyard | Discovered new exit (range 0) 1 | -11/Scrapyard | Entered Materials 123 | -10/Materials | Discovered new exit (range 7) 255 | -10/Materials | Discovered new exit (range 7) 306 | -10/Materials | Discovered new exit (range 7) 315 | -10/Materials | Build established: Mutant 324 | -10/Materials | Entered another Materials area 324 | -9/Materials | Evolved 2 slots: Propulsion x2 476 | -9/Materials | Discovered new exit (range 12) 760 | -9/Materials | Core integrity fell below 50% 762 | -9/Materials | Lost 4 parts (1p3n) 783 | -9/Materials | Core integrity fell below 20% 824 | -9/Materials | Lost 6 parts (3n1u2w) 896 | -9/Materials | Destroyed by G-47 Trooper with Particle Gun Last Messages --------------- 00811_ Acquired 11 matter. 00816_ Acquired Lgt. Assault Rifle. 00819_ Acquired 10 matter. 00824_ K-01 Serf collects debris. 00824_ Acquired Lgt. Assault Rifle. 00827_ K-01 Serf collects debris. 00828_ Acquired Heat Sink. 00829_ Acquired 42 matter. 00830_ K-01 Serf collects debris. 00841_ Acquired 14 matter. 00861_ K-01 Serf collects debris. 00881_ Critical hit (Burn: +37). 00883_ K-01 Serf collects debris. 00884_ Autogun destroyed. 00886_ Lgt. Treads destroyed. 00887_ Lgt. Assault Rifle destroyed. 00888_ K-01 Serf collects debris. 00892_ Atomic Centrifuge disabled. 00894_ K-01 Serf collects debris. 00894_ Lgt. Ion Engine destroyed. Map ----- +----------------------------------------------------+ | ???????????????????????????## ############ | | ????????????????????????????# ???????????#+ | | ????????????????????????????# ?????????????? | | ????????????????????????????########?????????????? | | ?????????????????????????????????????????????????? | | ?????????????????????????????????????????????????? | | ????????????????????????????????????????????###### | | ?????????????????????????????????????????#+## | | ?????????????????????????????????????? | | ???????????????????????????????? ??? < | | ??????????????????????????? ???? ?? | | ?????????????????????????? ???? #?????#+##" | | ?????????????????????????? ??? #????????#" !"| | | ????????????????????? ???"" """ ?????????#""""" | | ????????????????????? """ """ ??????????##### | | ????????????????????# """ """ ?????????????## | | ????????????????????? #?????????????# | | ??????????????????????? #?????????????# | | ???????????????????????? #?????????????# | | ????????????????????#???? +?????????????# | | ????????????????????# ?????! #?????????????# | | ????????????????????# ????? #?????????????# | | ????????????????????? ????? #?????????????# | | ??????????????????#####g#####?# #?????????????## | | ??????????????????# g### a #??????????????? | | ??????????????????#==k Y@ g/ #??????????????? | | ??????????????????#== " " ### #??????????????? | | ??????????????????#== " #?## ##????#+#???????? | | ??????????????????# """ #??# #?????# #???????? | | ??????????????????# #??# #????## ######### | | ??????????????????# #??# ###### | | ??????????????????# #??# % * % | | ??????????????????## ########??# ###### | | ???????????????????##????????###/###### ######## | | ?????????????????????????????# * # #??????? | | ?????????????????????????????# = # #??????? | | ?????????????????????????????# !=% # #??????? | | ?????????????????????????????# = # #??????? | | ?????????????????????????????# + #??????? | | ?????????????????????????????# # #??????? | | ?????????????????????????????# = # #??????? | | ?????????????????????????????# # #??????? | | ?????????????????????????????# # #??????? | | ?????????????????????????????########## #??????? | | ?????????????????????????????????????? ??????? | | ?????????????????????????????????????? ??????? | | ?????????????????????????????????????? ??????? | | ??????????????????????????????????????####+??????? | | ?????????????????????????????????????????????????? | | ?????????????????????????????????????????????????? | +----------------------------------------------------+ Best States ------------- Heat Dissipation 28 Energy Generation 10 Energy Capacity 250 Matter Stores 300 Matter Capacity 300 Sight Range 16 Terrain Scan Density 10 Armor Coverage 150 Evasion (%) 42 Recoil Reduction 1 Item Schematics ----------------- None Robot Schematics ------------------ None Fabricated ------------ Nothing Alien Tech Used ----------------- None Achievements -------------- None Challenges ------------ None Game ------ Seed ExperimentalElectronGun Manual? 0 Play Time 00:11:45 Cumulative 127.3 hours Start 2024.04.25 @ 16:42:47 End 2024.04.25 @ 16:49:46 Sessions 1 Manual Loads 0 Difficulty Rogue Special Mode None Game No. 247 Rogue 247 Adventurer 0 Explorer 0 Win Type - Total 0 Types 0/0/0/0/0/0/0/0/0 Lore% 33 Gallery% 46 Achievement% 32 Wizard Run 0 Options --------- Layout 1 ASCII 0 Keyboard 0 Movement Mouse Keybinds 0 Fullscreen 1 Font 24/Smallcaps Map View 50x40 Zoom Use 0% Tactical HUD 1 Map Filters NONE Filters NONE Steam 1 RUN: b77fac85-d1c7-45c2-873f-8649434babb6